[Event "*** Titled Tuesday Blitz"]
[Site "Chess.com"]
[Date "2019.08.06"]
[Round "6"]
[White "Marcus_Harvey"]
[Black "Dhaydon19"]
[Result "1-0"]
[WhiteElo "2768"]
[BlackElo "2607"]
[TimeControl "180+2"]
[EndTime "14:24:58 PDT"]
[Termination "Marcus_Harvey won by checkmate"]

1. d4 {[%clk 0:03:01.9]} 1... c6 {[%clk 0:03:00.9]} 2. e4 {[%clk 0:02:58.6]}
2... d5 {[%clk 0:03:02.1]} 3. e5 {[%clk 0:03:00.1]} 3... Bf5 {[%clk 0:03:01.9]}
4. h4 {[%clk 0:03:00.8]} 4... h5 {[%clk 0:03:02.3]} 5. Bd3 {[%clk 0:03:01]} 5...
Bxd3 {[%clk 0:03:02.9]} 6. Qxd3 {[%clk 0:03:02.9]} 6... e6 {[%clk 0:03:03.9]} 7.
Nf3 {[%clk 0:03:03.4]} 7... Ne7 {[%clk 0:03:04.7]} 8. Bg5 {[%clk 0:03:00]} 8...
Qb6 {[%clk 0:03:05.4]} 9. Nbd2 {[%clk 0:03:01]} 9... Nd7 {[%clk 0:03:04.6]} 10.
c4 {[%clk 0:02:58.1]} 10... Nf5 {[%clk 0:03:01.2]} 11. O-O {[%clk 0:02:49]}
11... Be7 {[%clk 0:02:56.9]} 12. Bxe7 {[%clk 0:02:47.3]} 12... Nxe7 {[%clk
0:02:57.3]} 13. b4 {[%clk 0:02:45.6]} 13... Nf5 {[%clk 0:02:55]} 14. c5 {[%clk
0:02:41]} 14... Qc7 {[%clk 0:02:55.7]} 15. b5 {[%clk 0:02:39.7]} 15... O-O
{[%clk 0:02:52.6]} 16. Rab1 {[%clk 0:02:37.5]} 16... b6 {[%clk 0:02:41.5]} 17.
bxc6 {[%clk 0:02:16.2]} 17... Qxc6 {[%clk 0:02:42.4]} 18. Rfc1 {[%clk
0:02:14.9]} 18... bxc5 {[%clk 0:02:41.7]} 19. dxc5 {[%clk 0:02:16.2]} 19... Rfb8
{[%clk 0:02:34.6]} 20. Rxb8+ {[%clk 0:02:15.2]} 20... Rxb8 {[%clk 0:02:26.7]}
21. Nd4 {[%clk 0:02:16.3]} 21... Nxd4 {[%clk 0:02:22.2]} 22. Qxd4 {[%clk
0:02:18.2]} 22... Qc7 {[%clk 0:02:11.8]} 23. f4 {[%clk 0:02:09.7]} 23... Rc8
{[%clk 0:02:09.6]} 24. Nb3 {[%clk 0:02:07.1]} 24... g6 {[%clk 0:02:10.4]} 25.
Rc3 {[%clk 0:01:47.6]} 25... Rb8 {[%clk 0:02:06.3]} 26. c6 {[%clk 0:01:44.8]}
26... Nb6 {[%clk 0:02:06.6]} 27. Na5 {[%clk 0:01:38]} 27... Rc8 {[%clk
0:01:51.4]} 28. Rc5 {[%clk 0:01:35.5]} 28... Qe7 {[%clk 0:01:42.9]} 29. g3
{[%clk 0:01:29.5]} 29... Rc7 {[%clk 0:01:34.6]} 30. Qb4 {[%clk 0:01:17.3]} 30...
Kg7 {[%clk 0:01:34]} 31. Rb5 {[%clk 0:01:14.1]} 31... Qd8 {[%clk 0:01:02.1]} 32.
Kf2 {[%clk 0:01:12.7]} 32... Qc8 {[%clk 0:00:58.3]} 33. Rxb6 {[%clk 0:01:01]}
33... axb6 {[%clk 0:00:58.8]} 34. Qxb6 {[%clk 0:01:02.9]} 34... Re7 {[%clk
0:00:51.1]} 35. Ke3 {[%clk 0:01:01.2]} 35... f6 {[%clk 0:00:50]} 36. Kd4 {[%clk
0:00:52.9]} 36... fxe5+ {[%clk 0:00:51.6]} 37. fxe5 {[%clk 0:00:53.9]} 37... Qf8
{[%clk 0:00:51.4]} 38. Kc5 {[%clk 0:00:39.1]} 38... Qf2+ {[%clk 0:00:51.7]} 39.
Kb5 {[%clk 0:00:40.6]} 39... Qb2+ {[%clk 0:00:50.8]} 40. Ka6 {[%clk 0:00:35]}
40... Qxe5 {[%clk 0:00:51]} 41. Qc5 {[%clk 0:00:29.6]} 41... Qe2+ {[%clk
0:00:44.7]} 42. Kb6 {[%clk 0:00:28.1]} 42... Qb2+ {[%clk 0:00:44.3]} 43. Nb3
{[%clk 0:00:29.1]} 43... Qf6 {[%clk 0:00:35.6]} 44. c7 {[%clk 0:00:28.8]} 44...
e5+ {[%clk 0:00:36.7]} 45. Qc6 {[%clk 0:00:23.4]} 45... Qf2+ {[%clk 0:00:34.8]}
46. Qc5 {[%clk 0:00:16.3]} 46... Re6+ {[%clk 0:00:34.3]} 47. Kb7 {[%clk
0:00:14]} 47... Qf7 {[%clk 0:00:34]} 48. Qxd5 {[%clk 0:00:13.2]} 48... e4 {[%clk
0:00:21.4]} 49. Nc5 {[%clk 0:00:13.8]} 49... Rb6+ {[%clk 0:00:20.5]} 50. Kxb6
{[%clk 0:00:14.2]} 50... Qxd5 {[%clk 0:00:22.4]} 51. c8=Q {[%clk 0:00:15.7]}
51... e3 {[%clk 0:00:22.4]} 52. Qc7+ {[%clk 0:00:15.2]} 52... Kh6 {[%clk
0:00:23.3]} 53. Qf4+ {[%clk 0:00:16.2]} 53... Kh7 {[%clk 0:00:24.9]} 54. Qxe3
{[%clk 0:00:17.2]} 54... Qxa2 {[%clk 0:00:26.2]} 55. Qe7+ {[%clk 0:00:17.8]}
55... Kh6 {[%clk 0:00:27.5]} 56. Qg5+ {[%clk 0:00:18.9]} 56... Kh7 {[%clk
0:00:28.5]} 57. Qe7+ {[%clk 0:00:19.5]} 57... Kh6 {[%clk 0:00:29.6]} 58. Qd6
{[%clk 0:00:20.8]} 58... Qb2+ {[%clk 0:00:29.7]} 59. Kc7 {[%clk 0:00:22]} 59...
Qg7+ {[%clk 0:00:30.2]} 60. Nd7 {[%clk 0:00:22.8]} 60... Qc3+ {[%clk 0:00:31.1]}
61. Nc5 {[%clk 0:00:24.1]} 61... Qg7+ {[%clk 0:00:31.9]} 62. Kc6 {[%clk
0:00:25.7]} 62... Qc3 {[%clk 0:00:32.2]} 63. Qf4+ {[%clk 0:00:26.8]} 63... Kh7
{[%clk 0:00:33.5]} 64. Qf7+ {[%clk 0:00:27.5]} 64... Kh6 {[%clk 0:00:34.8]} 65.
Qf8+ {[%clk 0:00:26.3]} 65... Kh7 {[%clk 0:00:35.9]} 66. Kd7 {[%clk 0:00:27.5]}
66... Qxg3 {[%clk 0:00:35.9]} 67. Qe7+ {[%clk 0:00:24.6]} 67... Kh6 {[%clk
0:00:36.7]} 68. Ne6 {[%clk 0:00:25.7]} 68... Qd3+ {[%clk 0:00:35.5]} 69. Ke8
{[%clk 0:00:26.7]} 69... Qc3 {[%clk 0:00:30.8]} 70. Qf8+ {[%clk 0:00:25.1]}
70... Kh7 {[%clk 0:00:32]} 71. Ng5# {[%clk 0:00:26.1]} 1-0

[Event "*** Titled Tuesday Blitz"]
[Site "Chess.com"]
[Date "2019.08.06"]
[Round "6"]
[White "JSMastropiero"]
[Black "Th3ChessViking"]
[Result "0-1"]
[WhiteElo "2319"]
[BlackElo "2413"]
[TimeControl "180+2"]
[EndTime "14:24:59 PDT"]
[Termination "Th3ChessViking won by resignation"]

1. d4 {[%clk 0:01:37.9]} 1... Nf6 {[%clk 0:02:58.3]} 2. c4 {[%clk 0:01:38.2]}
2... c5 {[%clk 0:02:59.2]} 3. d5 {[%clk 0:01:38.5]} 3... e5 {[%clk 0:03:00.3]}
4. Nc3 {[%clk 0:01:38.6]} 4... d6 {[%clk 0:03:01.9]} 5. g3 {[%clk 0:01:37.1]}
5... Nbd7 {[%clk 0:03:03.8]} 6. Bg2 {[%clk 0:01:37.6]} 6... Be7 {[%clk
0:03:05.7]} 7. e4 {[%clk 0:01:38]} 7... a6 {[%clk 0:03:07.6]} 8. Nge2 {[%clk
0:01:35.1]} 8... O-O {[%clk 0:03:09.2]} 9. a3 {[%clk 0:01:34.6]} 9... Rb8 {[%clk
0:03:10.1]} 10. Rb1 {[%clk 0:01:34.6]} 10... b5 {[%clk 0:03:06.1]} 11. cxb5
{[%clk 0:01:35.6]} 11... axb5 {[%clk 0:03:07.5]} 12. b4 {[%clk 0:01:35.6]} 12...
cxb4 {[%clk 0:03:03.8]} 13. axb4 {[%clk 0:01:36.9]} 13... Ba6 {[%clk 0:02:49.4]}
14. Ra1 {[%clk 0:01:33.1]} 14... Ra8 {[%clk 0:02:43.8]} 15. O-O {[%clk 0:01:06]}
15... Nb6 {[%clk 0:02:39.9]} 16. Nb1 {[%clk 0:00:52.1]} 16... Nc4 {[%clk
0:02:38.7]} 17. Nd2 {[%clk 0:00:52.5]} 17... Qc7 {[%clk 0:02:34]} 18. Qc2 {[%clk
0:00:43.5]} 18... Rfc8 {[%clk 0:02:29]} 19. Nxc4 {[%clk 0:00:44]} 19... Qxc4
{[%clk 0:02:21.7]} 20. Qxc4 {[%clk 0:00:44.7]} 20... Rxc4 {[%clk 0:02:23.6]} 21.
Bd2 {[%clk 0:00:19.7]} 21... Nxe4 {[%clk 0:02:19.8]} 22. Bxe4 {[%clk 0:00:19.7]}
22... Rxe4 {[%clk 0:02:21.7]} 23. Nc3 {[%clk 0:00:20.9]} 23... Rxb4 {[%clk
0:02:17.2]} 24. Ra5 {[%clk 0:00:21.4]} 24... Bb7 {[%clk 0:02:15.2]} 25. Rxb5
{[%clk 0:00:22.6]} 25... Rxb5 {[%clk 0:02:11.3]} 26. Nxb5 {[%clk 0:00:23.5]}
26... Ba6 {[%clk 0:01:56.9]} 27. Ra1 {[%clk 0:00:20.2]} 27... Bb7 {[%clk
0:01:52.7]} 28. Rd1 {[%clk 0:00:17.2]} 28... Ra4 {[%clk 0:01:11.4]} 29. Be3
{[%clk 0:00:16.8]} 29... Ra5 {[%clk 0:01:08]} 30. Nc3 {[%clk 0:00:16.3]} 30...
f5 {[%clk 0:01:05.4]} 31. Rb1 {[%clk 0:00:17.1]} 31... Bxd5 {[%clk 0:01:03.6]}
32. Nxd5 {[%clk 0:00:18.2]} 32... Rxd5 {[%clk 0:01:05]} 33. Rb7 {[%clk
0:00:18.8]} 33... Kf8 {[%clk 0:01:04.1]} 34. Rb8+ {[%clk 0:00:19]} 34... Kf7
{[%clk 0:01:04]} 35. Rb7 {[%clk 0:00:20.4]} 35... h6 {[%clk 0:01:02]} 36. h4
{[%clk 0:00:21.1]} 36... Ke6 {[%clk 0:00:56.2]} 37. h5 {[%clk 0:00:21.2]} 37...
f4 {[%clk 0:00:42.2]} 38. gxf4 {[%clk 0:00:21.9]} 38... exf4 {[%clk 0:00:43.7]}
39. Bxf4 {[%clk 0:00:23.1]} 39... Rxh5 {[%clk 0:00:44.6]} 40. Kf1 {[%clk
0:00:24]} 40... Rf5 {[%clk 0:00:44.9]} 41. Bg3 {[%clk 0:00:24.5]} 41... g5
{[%clk 0:00:46]} 42. Ke2 {[%clk 0:00:20.3]} 42... h5 {[%clk 0:00:46.9]} 43. Rb6
{[%clk 0:00:20.8]} 43... h4 {[%clk 0:00:48.1]} 44. Bh2 {[%clk 0:00:22.2]} 44...
Rd5 {[%clk 0:00:42.5]} 45. Rb3 {[%clk 0:00:17.5]} 45... Bf6 {[%clk 0:00:40.7]}
46. Re3+ {[%clk 0:00:18.1]} 46... Kf5 {[%clk 0:00:41.8]} 47. Re8 {[%clk
0:00:18.5]} 47... Be5 {[%clk 0:00:36.4]} 48. Rf8+ {[%clk 0:00:19.4]} 48... Kg6
{[%clk 0:00:25.1]} 49. f4 {[%clk 0:00:19.3]} 49... Bxf4 {[%clk 0:00:22.7]} 50.
Bxf4 {[%clk 0:00:20.4]} 50... gxf4 {[%clk 0:00:24.6]} 51. Rxf4 {[%clk
0:00:21.5]} 51... Kg5 {[%clk 0:00:25.8]} 52. Rf8 {[%clk 0:00:22.5]} 52... Re5+
{[%clk 0:00:26.5]} 53. Kd3 {[%clk 0:00:23.5]} 53... h3 {[%clk 0:00:25.1]} 54.
Rh8 {[%clk 0:00:24.4]} 54... Kg4 {[%clk 0:00:25.5]} 55. Rh6 {[%clk 0:00:21.9]}
55... d5 {[%clk 0:00:25.9]} 56. Kd4 {[%clk 0:00:22]} 56... Rh5 {[%clk
0:00:26.2]} 57. Rg6+ {[%clk 0:00:23.2]} 57... Kf3 {[%clk 0:00:26]} 58. Rf6+
{[%clk 0:00:22.8]} 58... Kg3 {[%clk 0:00:13.3]} 59. Ke3 {[%clk 0:00:24]} 59...
Re5+ {[%clk 0:00:12.2]} 60. Kd4 {[%clk 0:00:24.1]} 60... Rg5 {[%clk 0:00:13.6]}
61. Ke3 {[%clk 0:00:22.5]} 61... h2 {[%clk 0:00:14.4]} 62. Rf3+ {[%clk
0:00:23.8]} 62... Kg2 {[%clk 0:00:14.3]} 63. Rf2+ {[%clk 0:00:24.9]} 63... Kg1
{[%clk 0:00:14.5]} 64. Rd2 {[%clk 0:00:25.8]} 64... h1=Q {[%clk 0:00:09.6]} 65.
Rd1+ {[%clk 0:00:25.6]} 65... Kh2 {[%clk 0:00:10.2]} 66. Rd2+ {[%clk 0:00:26.9]}
66... Rg2 {[%clk 0:00:10.1]} 67. Rxd5 {[%clk 0:00:27.3]} 67... Rg3+ {[%clk
0:00:10.2]} 68. Kd4 {[%clk 0:00:28.7]} 68... Rd3+ {[%clk 0:00:10.4]} 69. Kxd3
{[%clk 0:00:28.8]} 69... Qxd5+ {[%clk 0:00:12.3]} 0-1

[Event "*** Titled Tuesday Blitz"]
[Site "Chess.com"]
[Date "2019.08.06"]
[Round "6"]
[White "underdogchss"]
[Black "NTBT_DHS"]
[Result "1-0"]
[WhiteElo "2536"]
[BlackElo "2655"]
[TimeControl "180+2"]
[EndTime "14:25:04 PDT"]
[Termination "underdogchss won by resignation"]

1. d4 {[%clk 0:03:01.9]} 1... Nf6 {[%clk 0:02:59]} 2. Nf3 {[%clk 0:03:02.1]}
2... g6 {[%clk 0:02:59.5]} 3. c4 {[%clk 0:03:02.5]} 3... Bg7 {[%clk 0:03:00.7]}
4. Nc3 {[%clk 0:03:03.8]} 4... O-O {[%clk 0:03:02.6]} 5. e4 {[%clk 0:03:04.5]}
5... d6 {[%clk 0:03:03.9]} 6. Be2 {[%clk 0:03:05.5]} 6... e5 {[%clk 0:03:05]} 7.
O-O {[%clk 0:03:03.3]} 7... Nc6 {[%clk 0:03:06.1]} 8. d5 {[%clk 0:03:03.9]} 8...
Ne7 {[%clk 0:03:06.8]} 9. b4 {[%clk 0:02:58.9]} 9... Nh5 {[%clk 0:03:07.1]} 10.
g3 {[%clk 0:02:54]} 10... f5 {[%clk 0:03:07.1]} 11. Ng5 {[%clk 0:02:53.8]} 11...
Nf6 {[%clk 0:03:08.7]} 12. Bf3 {[%clk 0:02:53.4]} 12... Rb8 {[%clk 0:03:09.9]}
13. b5 {[%clk 0:02:53.1]} 13... b6 {[%clk 0:03:03.1]} 14. Bb2 {[%clk 0:02:25.7]}
14... fxe4 {[%clk 0:02:40.4]} 15. Ncxe4 {[%clk 0:02:23.3]} 15... Nf5 {[%clk
0:02:36.2]} 16. Ne6 {[%clk 0:02:18.2]} 16... Bxe6 {[%clk 0:02:35.3]} 17. dxe6
{[%clk 0:02:20.1]} 17... Qe7 {[%clk 0:02:30.1]} 18. Nxf6+ {[%clk 0:02:16.8]}
18... Rxf6 {[%clk 0:02:26.8]} 19. Bd5 {[%clk 0:02:14.7]} 19... Rbf8 {[%clk
0:02:27.3]} 20. Qd3 {[%clk 0:02:09.5]} 20... h5 {[%clk 0:02:25.5]} 21. f4 {[%clk
0:02:08]} 21... Nd4 {[%clk 0:02:21.1]} 22. Bxd4 {[%clk 0:01:58.8]} 22... exd4
{[%clk 0:02:19.7]} 23. a4 {[%clk 0:01:47.4]} 23... h4 {[%clk 0:02:09.9]} 24. a5
{[%clk 0:01:46.3]} 24... hxg3 {[%clk 0:02:08.8]} 25. hxg3 {[%clk 0:01:47.5]}
25... g5 {[%clk 0:02:06.6]} 26. f5 {[%clk 0:01:42.1]} 26... Rh6 {[%clk
0:02:01.9]} 27. axb6 {[%clk 0:01:30.9]} 27... axb6 {[%clk 0:02:03.6]} 28. Kg2
{[%clk 0:01:26.5]} 28... Be5 {[%clk 0:01:53.1]} 29. Rh1 {[%clk 0:01:21.3]} 29...
Rff6 {[%clk 0:01:48.4]} 30. Raf1 {[%clk 0:00:48.3]} 30... Kf8 {[%clk 0:01:38.7]}
31. Qa3 {[%clk 0:00:44.3]} 31... Kg7 {[%clk 0:01:18.5]} 32. Qc1 {[%clk
0:00:40.6]} 32... Rf8 {[%clk 0:00:47.9]} 33. Rxh6 {[%clk 0:00:37.8]} 33... Kxh6
{[%clk 0:00:49.8]} 34. Rh1+ {[%clk 0:00:38.5]} 34... Kg7 {[%clk 0:00:51.1]} 35.
g4 {[%clk 0:00:30.9]} 35... Rh8 {[%clk 0:00:41.5]} 36. Rxh8 {[%clk 0:00:22.7]}
36... Kxh8 {[%clk 0:00:43.4]} 37. Qh1+ {[%clk 0:00:23.7]} 37... Kg7 {[%clk
0:00:41.1]} 38. Qh5 {[%clk 0:00:23.5]} 38... Bf6 {[%clk 0:00:35]} 39. Qg6+
{[%clk 0:00:21.3]} 39... Kf8 {[%clk 0:00:33.5]} 40. Kf3 {[%clk 0:00:19.1]} 40...
Qg7 {[%clk 0:00:27.7]} 41. Qh5 {[%clk 0:00:12.2]} 41... d3 {[%clk 0:00:20.8]}
42. Ke3 {[%clk 0:00:11.4]} 42... Bc3 {[%clk 0:00:15]} 43. Qf7+ {[%clk
0:00:07.2]} 43... Qxf7 {[%clk 0:00:16]} 44. exf7 {[%clk 0:00:09.1]} 44... d2
{[%clk 0:00:17.8]} 45. Ke2 {[%clk 0:00:10.7]} 45... Ke7 {[%clk 0:00:17.5]} 46.
Kd1 {[%clk 0:00:11.5]} 46... Bb4 {[%clk 0:00:18.6]} 47. f6+ {[%clk 0:00:12]}
47... Kf8 {[%clk 0:00:19.8]} 48. Ke2 {[%clk 0:00:13.2]} 48... Bc3 {[%clk
0:00:20.9]} 49. Kd1 {[%clk 0:00:14.2]} 49... Bb4 {[%clk 0:00:22.3]} 50. Kc2
{[%clk 0:00:15.6]} 50... Bc3 {[%clk 0:00:23.2]} 51. Kd1 {[%clk 0:00:16.7]} 51...
Bxf6 {[%clk 0:00:23.1]} 52. Kxd2 {[%clk 0:00:17.2]} 52... Bg7 {[%clk 0:00:23.4]}
53. Kd3 {[%clk 0:00:19.1]} 53... Ke7 {[%clk 0:00:24.7]} 54. Ke4 {[%clk 0:00:21]}
54... Kf6 {[%clk 0:00:26.2]} 55. Kd4 {[%clk 0:00:21.7]} 55... Kg6+ {[%clk
0:00:26.8]} 56. Ke4 {[%clk 0:00:22.7]} 56... Kf6 {[%clk 0:00:28.7]} 57. Ke3
{[%clk 0:00:23.8]} 57... Ke5 {[%clk 0:00:29.6]} 58. Kf3 {[%clk 0:00:24.7]} 58...
Kd4 {[%clk 0:00:30.7]} 59. Be6 {[%clk 0:00:25.8]} 59... Kd3 {[%clk 0:00:31.2]}
60. Bd5 {[%clk 0:00:26.9]} 60... Kd4 {[%clk 0:00:32]} 61. Be6 {[%clk 0:00:28]}
61... Bf8 {[%clk 0:00:31.9]} 62. Bd5 {[%clk 0:00:28.3]} 62... Kc5 {[%clk
0:00:33.4]} 63. Be6 {[%clk 0:00:29]} 63... c6 {[%clk 0:00:34.5]} 64. bxc6 {[%clk
0:00:29.1]} 64... Kxc6 {[%clk 0:00:36.4]} 65. Ke4 {[%clk 0:00:29.8]} 65... Kc5
{[%clk 0:00:37.8]} 66. Kf5 {[%clk 0:00:30.6]} 66... Be7 {[%clk 0:00:39.2]} 67.
Kg6 {[%clk 0:00:31.3]} 67... b5 {[%clk 0:00:29.1]} 68. cxb5 {[%clk 0:00:32.3]}
68... Kxb5 {[%clk 0:00:31]} 69. Kg7 {[%clk 0:00:33.8]} 69... Kc5 {[%clk
0:00:29]} 70. f8=Q {[%clk 0:00:34.2]} 70... Bxf8+ {[%clk 0:00:30.3]} 71. Kxf8
{[%clk 0:00:36.1]} 71... d5 {[%clk 0:00:32.2]} 72. Kg7 {[%clk 0:00:36.8]} 72...
d4 {[%clk 0:00:33.7]} 73. Bf5 {[%clk 0:00:38.2]} 73... Kc4 {[%clk 0:00:32.3]}
74. Kg6 {[%clk 0:00:39.4]} 74... d3 {[%clk 0:00:34.2]} 75. Bxd3+ {[%clk
0:00:40.2]} 75... Kxd3 {[%clk 0:00:35.2]} 76. Kxg5 {[%clk 0:00:42.1]} 76... Kd4
{[%clk 0:00:37.1]} 77. Kf6 {[%clk 0:00:43.5]} 77... Kd5 {[%clk 0:00:38.4]} 78.
g5 {[%clk 0:00:45.4]} 78... Kd6 {[%clk 0:00:40.3]} 79. g6 {[%clk 0:00:46.2]}
79... Kd7 {[%clk 0:00:42.2]} 1-0

[Event "*** Titled Tuesday Blitz"]
[Site "Chess.com"]
[Date "2019.08.06"]
[Round "6"]
[White "aleccable"]
[Black "Usurpov"]
[Result "1/2-1/2"]
[WhiteElo "2309"]
[BlackElo "2387"]
[TimeControl "180+2"]
[EndTime "14:25:20 PDT"]
[Termination "Game drawn by agreement"]

1. e4 {[%clk 0:03:01.9]} 1... c5 {[%clk 0:03:00.4]} 2. Nc3 {[%clk 0:03:02.7]}
2... e6 {[%clk 0:03:01.2]} 3. f4 {[%clk 0:03:02.3]} 3... d5 {[%clk 0:03:02.1]}
4. d3 {[%clk 0:03:01.6]} 4... Nc6 {[%clk 0:02:59.5]} 5. Be2 {[%clk 0:03:00.3]}
5... dxe4 {[%clk 0:02:58.6]} 6. dxe4 {[%clk 0:03:00.3]} 6... Qxd1+ {[%clk
0:02:56.5]} 7. Bxd1 {[%clk 0:02:51.6]} 7... Bd7 {[%clk 0:02:55.2]} 8. Nf3 {[%clk
0:02:48.5]} 8... Nf6 {[%clk 0:02:53]} 9. Be3 {[%clk 0:02:45.7]} 9... Be7 {[%clk
0:02:51.5]} 10. h3 {[%clk 0:02:45.6]} 10... O-O {[%clk 0:02:42.4]} 11. O-O
{[%clk 0:02:43.3]} 11... Rfd8 {[%clk 0:02:41.7]} 12. Be2 {[%clk 0:02:42]} 12...
Be8 {[%clk 0:02:40.1]} 13. Rfd1 {[%clk 0:02:24.3]} 13... Nb4 {[%clk 0:02:31]}
14. Rxd8 {[%clk 0:02:24.5]} 14... Rxd8 {[%clk 0:02:31.9]} 15. Rc1 {[%clk
0:02:24]} 15... a6 {[%clk 0:02:21.9]} 16. a3 {[%clk 0:02:23.4]} 16... Nc6 {[%clk
0:02:23.4]} 17. Rd1 {[%clk 0:02:24.3]} 17... Rxd1+ {[%clk 0:02:15.4]} 18. Bxd1
{[%clk 0:02:26.2]} 18... Nd7 {[%clk 0:02:14.3]} 19. e5 {[%clk 0:02:22.4]} 19...
f6 {[%clk 0:02:09.7]} 20. exf6 {[%clk 0:02:02.2]} 20... gxf6 {[%clk 0:02:11.6]}
21. g4 {[%clk 0:01:54.9]} 21... Bf7 {[%clk 0:01:38.2]} 22. Be2 {[%clk
0:01:40.4]} 22... Bg6 {[%clk 0:01:36.9]} 23. Bc4 {[%clk 0:01:32.8]} 23... Bf7
{[%clk 0:01:37.8]} 24. Ne4 {[%clk 0:01:14.5]} 24... b5 {[%clk 0:01:34.7]} 25.
Ba2 {[%clk 0:01:01.5]} 25... c4 {[%clk 0:01:26.2]} 26. c3 {[%clk 0:01:00]} 26...
Bg6 {[%clk 0:01:21]} 27. Ng3 {[%clk 0:00:57.2]} 27... Nc5 {[%clk 0:01:18.9]} 28.
f5 {[%clk 0:00:30.1]} 28... exf5 {[%clk 0:01:12.7]} 29. Nxf5 {[%clk 0:00:20.6]}
29... Bf8 {[%clk 0:01:12.8]} 30. Bxc5 {[%clk 0:00:11.4]} 30... Bxc5+ {[%clk
0:01:12.8]} 31. Kf1 {[%clk 0:00:12.8]} 31... Bxf5 {[%clk 0:01:08.6]} 32. gxf5
{[%clk 0:00:14.2]} 32... Be3 {[%clk 0:01:06.4]} 33. b3 {[%clk 0:00:13.9]} 33...
cxb3 {[%clk 0:00:53.3]} 34. Bxb3+ {[%clk 0:00:14.6]} 34... Kf8 {[%clk
0:00:53.4]} 35. a4 {[%clk 0:00:16.1]} 35... Ke7 {[%clk 0:00:51.8]} 36. axb5
{[%clk 0:00:16.6]} 36... axb5 {[%clk 0:00:53.7]} 37. Ke2 {[%clk 0:00:17.8]}
37... Bh6 {[%clk 0:00:51.9]} 38. Bd5 {[%clk 0:00:18.1]} 38... Nd8 {[%clk
0:00:36.9]} 39. Bg8 {[%clk 0:00:18.8]} 39... Bf4 {[%clk 0:00:34.2]} 40. Bxh7
{[%clk 0:00:19.8]} 40... Nf7 {[%clk 0:00:35.3]} 41. Bg8 {[%clk 0:00:20.2]} 41...
Nd6 {[%clk 0:00:31.1]} 42. Be6 {[%clk 0:00:20.9]} 42... Bh6 {[%clk 0:00:31]} 43.
Nh2 {[%clk 0:00:19.8]} 43... Ne4 {[%clk 0:00:29.2]} 44. c4 {[%clk 0:00:16.9]}
44... bxc4 {[%clk 0:00:27.5]} 45. Bxc4 {[%clk 0:00:16.9]} 45... Ng3+ {[%clk
0:00:28.3]} 46. Kf3 {[%clk 0:00:17.6]} 46... Nxf5 {[%clk 0:00:30.2]} 47. Ng4
{[%clk 0:00:18.6]} 47... Bg5 {[%clk 0:00:29.9]} 48. Bd3 {[%clk 0:00:19.4]} 48...
Nd6 {[%clk 0:00:28]} 49. Ne3 {[%clk 0:00:20]} 49... Ke6 {[%clk 0:00:26.9]} 50.
Nc4 {[%clk 0:00:19.7]} 50... Nf7 {[%clk 0:00:26.8]} 51. Kg4 {[%clk 0:00:19.4]}
51... Bc1 {[%clk 0:00:26]} 52. Bf5+ {[%clk 0:00:18]} 52... Kd5 {[%clk
0:00:25.7]} 53. Bd3 {[%clk 0:00:15.9]} 53... Kd4 {[%clk 0:00:22.7]} 54. Bf1
{[%clk 0:00:14.6]} 54... Ke4 {[%clk 0:00:20.4]} 55. h4 {[%clk 0:00:14.8]} 55...
f5+ {[%clk 0:00:21.1]} 56. Kg3 {[%clk 0:00:15.9]} 56... f4+ {[%clk 0:00:21.8]}
57. Kf2 {[%clk 0:00:15.5]} 57... Nh6 {[%clk 0:00:22.6]} 58. Bg2+ {[%clk
0:00:15.2]} 58... Kf5 {[%clk 0:00:23]} 59. Nd6+ {[%clk 0:00:15.4]} 59... Kg4
{[%clk 0:00:22.7]} 60. Be4 {[%clk 0:00:07.1]} 60... Kxh4 {[%clk 0:00:20.5]} 61.
Nf5+ {[%clk 0:00:07.3]} 61... Nxf5 {[%clk 0:00:18.8]} 62. Bxf5 {[%clk
0:00:09.2]} 62... Kg5 {[%clk 0:00:20.1]} 63. Be4 {[%clk 0:00:09.4]} 63... Kf6
{[%clk 0:00:20.5]} 64. Kf3 {[%clk 0:00:10.2]} 64... Ke5 {[%clk 0:00:22.1]} 65.
Bc2 {[%clk 0:00:11.5]} 65... Be3 {[%clk 0:00:23.6]} 66. Be4 {[%clk 0:00:13]}
66... Kd4 {[%clk 0:00:25.3]} 67. Bc2 {[%clk 0:00:14.5]} 67... Kc3 {[%clk
0:00:26.9]} 68. Bg6 {[%clk 0:00:15.9]} 68... Kd2 {[%clk 0:00:28.6]} 69. Bh7
{[%clk 0:00:17.3]} 69... Kc3 {[%clk 0:00:26.8]} 70. Bg6 {[%clk 0:00:15.3]} 70...
Kd4 {[%clk 0:00:27.6]} 71. Bh7 {[%clk 0:00:16.5]} 1/2-1/2